Workbook

Sheet 市事A-1-1
H3: 市町村別交通事故発生状況（全事故）
Z4: 計上期間 令和 3年 1月 1日 ～ 令和 3年12月31日
B5: 【人身事故】
B6: 市町村 | E6: 人身件数 | F6: 死者数 | G6: 負傷者数 | H6: 歩行者 | K6: 自転車 | O6: 市町村 | R6: 人身件数 | S6: 死者数 | T6: 負傷者数 | U6: 歩行者 | X6: 自転車
H7: 死者数 | I7: 負傷者数 | J7: 死傷者に占る率（％） | K7: 死者数 | L7: 負傷者数 | M7: 死傷者に占る率（％） | U7: 死者数 | V7: 負傷者数 | W7: 死傷者に占る率（％） | X7: 死者数 | Y7: 負傷者数 | Z7: 死傷者に占る率（％）
B10: 合計 | E10: =IF(OR(ISNUMBER(R12),ISNUMBER(R13),ISNUMBER(E12),ISNUMBER(E13),ISNUMBER(E14),ISNUMBER(E15),ISNUMBER(E16),ISNUMBER(E17),ISNUMBER(E18),ISNUMBER(E19),ISNUMBER(E20),ISNUMBER(E21),ISNUMBER(E22),ISNUMBER(E23),ISNUMBER(E24),ISNUMBER(E25),ISNUMBER(E26),ISNUMBER(E27),ISNUMBER(E28),ISNUMBER(E29),ISNUMBER(E30),ISNUMBER(E31),ISNUMBER(E32),ISNUMBER(R15),ISNUMBER(R17),ISNUMBER(R18),ISNUMBER(R20),ISNUMBER(R21),ISNUMBER(R22),ISNUMBER(R24),ISNUMBER(R25),ISNUMBER(R26),ISNUMBER(R28),ISNUMBER(R30),ISNUMBER(R31),ISNUMBER(R32),ISNUMBER(R33),ISNUMBER(R34),ISNUMBER(R35),ISNUMBER(R36),ISNUMBER(R38),ISNUMBER(R40)),SUM(R12,R13,E12:E32,R15,R17,R18,R20,R21,R22,R24:R26,R28,R30:R36,R38,R40),"") -> 2876 | F10: =IF(OR(ISNUMBER(S12),ISNUMBER(S13),ISNUMBER(F12),ISNUMBER(F13),ISNUMBER(F14),ISNUMBER(F15),ISNUMBER(F16),ISNUMBER(F17),ISNUMBER(F18),ISNUMBER(F19),ISNUMBER(F20),ISNUMBER(F21),ISNUMBER(F22),ISNUMBER(F23),ISNUMBER(F24),ISNUMBER(F25),ISNUMBER(F26),ISNUMBER(F27),ISNUMBER(F28),ISNUMBER(F29),ISNUMBER(F30),ISNUMBER(F31),ISNUMBER(F32),ISNUMBER(S15),ISNUMBER(S17),ISNUMBER(S18),ISNUMBER(S20),ISNUMBER(S21),ISNUMBER(S22),ISNUMBER(S24),ISNUMBER(S25),ISNUMBER(S26),ISNUMBER(S28),ISNUMBER(S30),ISNUMBER(S31),ISNUMBER(S32),ISNUMBER(S33),ISNUMBER(S34),ISNUMBER(S35),ISNUMBER(S36),ISNUMBER(S38),ISNUMBER(S40)),SUM(S12,S13,F12:F32,S15,S17,S18,S20,S21,S22,S24:S26,S28,S30:S36,S38,S40),"") -> 55 | G10: =IF(OR(ISNUMBER(T12),ISNUMBER(T13),ISNUMBER(G12),ISNUMBER(G13),ISNUMBER(G14),ISNUMBER(G15),ISNUMBER(G16),ISNUMBER(G17),ISNUMBER(G18),ISNUMBER(G19),ISNUMBER(G20),ISNUMBER(G21),ISNUMBER(G22),ISNUMBER(G23),ISNUMBER(G24),ISNUMBER(G25),ISNUMBER(G26),ISNUMBER(G27),ISNUMBER(G28),ISNUMBER(G29),ISNUMBER(G30),ISNUMBER(G31),ISNUMBER(G32),ISNUMBER(T15),ISNUMBER(T17),ISNUMBER(T18),ISNUMBER(T20),ISNUMBER(T21),ISNUMBER(T22),ISNUMBER(T24),ISNUMBER(T25),ISNUMBER(T26),ISNUMBER(T28),ISNUMBER(T30),ISNUMBER(T31),ISNUMBER(T32),ISNUMBER(T33),ISNUMBER(T34),ISNUMBER(T35),ISNUMBER(T36),ISNUMBER(T38),ISNUMBER(T40)),SUM(T12,T13,G12:G32,T15,T17,T18,T20,T21,T22,T24:T26,T28,T30:T36,T38,T40),"") -> 3579 | H10: =IF(OR(ISNUMBER(U12),ISNUMBER(U13),ISNUMBER(H12),ISNUMBER(H13),ISNUMBER(H14),ISNUMBER(H15),ISNUMBER(H16),ISNUMBER(H17),ISNUMBER(H18),ISNUMBER(H19),ISNUMBER(H20),ISNUMBER(H21),ISNUMBER(H22),ISNUMBER(H23),ISNUMBER(H24),ISNUMBER(H25),ISNUMBER(H26),ISNUMBER(H27),ISNUMBER(H28),ISNUMBER(H29),ISNUMBER(H30),ISNUMBER(H31),ISNUMBER(H32),ISNUMBER(U15),ISNUMBER(U17),ISNUMBER(U18),ISNUMBER(U20),ISNUMBER(U21),ISNUMBER(U22),ISNUMBER(U24),ISNUMBER(U25),ISNUMBER(U26),ISNUMBER(U28),ISNUMBER(U30),ISNUMBER(U31),ISNUMBER(U32),ISNUMBER(U33),ISNUMBER(U34),ISNUMBER(U35),ISNUMBER(U36),ISNUMBER(U38),ISNUMBER(U40)),SUM(U12,U13,H12:H32,U15,U17,U18,U20,U21,U22,U24:U26,U28,U30:U36,U38,U40),"") -> 17 | I10: =IF(OR(ISNUMBER(V12),ISNUMBER(V13),ISNUMBER(I12),ISNUMBER(I13),ISNUMBER(I14),ISNUMBER(I15),ISNUMBER(I16),ISNUMBER(I17),ISNUMBER(I18),ISNUMBER(I19),ISNUMBER(I20),ISNUMBER(I21),ISNUMBER(I22),ISNUMBER(I23),ISNUMBER(I24),ISNUMBER(I25),ISNUMBER(I26),ISNUMBER(I27),ISNUMBER(I28),ISNUMBER(I29),ISNUMBER(I30),ISNUMBER(I31),ISNUMBER(I32),ISNUMBER(V15),ISNUMBER(V17),ISNUMBER(V18),ISNUMBER(V20),ISNUMBER(V21),ISNUMBER(V22),ISNUMBER(V24),ISNUMBER(V25),ISNUMBER(V26),ISNUMBER(V28),ISNUMBER(V30),ISNUMBER(V31),ISNUMBER(V32),ISNUMBER(V33),ISNUMBER(V34),ISNUMBER(V35),ISNUMBER(V36),ISNUMBER(V38),ISNUMBER(V40)),SUM(V12,V13,I12:I32,V15,V17,V18,V20,V21,V22,V24:V26,V28,V30:V36,V38,V40),"") -> 279 | J10: =IF(((IF(F10="",0,F10))+(IF(G10="",0,G10)))<>0,SUM((IF(H10="",0,H10))+(IF(I10="",0,I10)))/SUM((IF(F10="",0,F10))+(IF(G10="",0,G10)))*100,0) -> 8.145294441 | K10: =IF(OR(ISNUMBER(X12),ISNUMBER(X13),ISNUMBER(K12),ISNUMBER(K13),ISNUMBER(K14),ISNUMBER(K15),ISNUMBER(K16),ISNUMBER(K17),ISNUMBER(K18),ISNUMBER(K19),ISNUMBER(K20),ISNUMBER(K21),ISNUMBER(K22),ISNUMBER(K23),ISNUMBER(K24),ISNUMBER(K25),ISNUMBER(K26),ISNUMBER(K27),ISNUMBER(K28),ISNUMBER(K29),ISNUMBER(K30),ISNUMBER(K31),ISNUMBER(K32),ISNUMBER(X15),ISNUMBER(X17),ISNUMBER(X18),ISNUMBER(X20),ISNUMBER(X21),ISNUMBER(X22),ISNUMBER(X24),ISNUMBER(X25),ISNUMBER(X26),ISNUMBER(X28),ISNUMBER(X30),ISNUMBER(X31),ISNUMBER(X32),ISNUMBER(X33),ISNUMBER(X34),ISNUMBER(X35),ISNUMBER(X36),ISNUMBER(X38),ISNUMBER(X40)),SUM(X12,X13,K12:K32,X15,X17,X18,X20,X21,X22,X24:X26,X28,X30:X36,X38,X40),"") -> 9 | L10: =IF(OR(ISNUMBER(Y12),ISNUMBER(Y13),ISNUMBER(L12),ISNUMBER(L13),ISNUMBER(L14),ISNUMBER(L15),ISNUMBER(L16),ISNUMBER(L17),ISNUMBER(L18),ISNUMBER(L19),ISNUMBER(L20),ISNUMBER(L21),ISNUMBER(L22),ISNUMBER(L23),ISNUMBER(L24),ISNUMBER(L25),ISNUMBER(L26),ISNUMBER(L27),ISNUMBER(L28),ISNUMBER(L29),ISNUMBER(L30),ISNUMBER(L31),ISNUMBER(L32),ISNUMBER(Y15),ISNUMBER(Y17),ISNUMBER(Y18),ISNUMBER(Y20),ISNUMBER(Y21),ISNUMBER(Y22),ISNUMBER(Y24),ISNUMBER(Y25),ISNUMBER(Y26),ISNUMBER(Y28),ISNUMBER(Y30),ISNUMBER(Y31),ISNUMBER(Y32),ISNUMBER(Y33),ISNUMBER(Y34),ISNUMBER(Y35),ISNUMBER(Y36),ISNUMBER(Y38),ISNUMBER(Y40)),SUM(Y12,Y13,L12:L32,Y15,Y17,Y18,Y20,Y21,Y22,Y24:Y26,Y28,Y30:Y36,Y38,Y40),"") -> 464 | M10: =IF(((IF(F10="",0,F10))+(IF(G10="",0,G10)))<>0,SUM((IF(K10="",0,K10))+(IF(L10="",0,L10)))/SUM((IF(F10="",0,F10))+(IF(G10="",0,G10)))*100,0) -> 13.01596037 | O10: 郡計 | R10: =IF(OR(ISNUMBER(R12),ISNUMBER(R13),ISNUMBER(R15),ISNUMBER(R17),ISNUMBER(R18),ISNUMBER(R20),ISNUMBER(R21),ISNUMBER(R22),ISNUMBER(R24),ISNUMBER(R25),ISNUMBER(R26),ISNUMBER(R28),ISNUMBER(R30),ISNUMBER(R31),ISNUMBER(R32),ISNUMBER(R33),ISNUMBER(R34),ISNUMBER(R35),ISNUMBER(R36),ISNUMBER(R38),ISNUMBER(R40)),SUM(R12,R13,R15,R17,R18,R20,R21,R22,R24,R25,R26,R28,R30,R31,R32,R33,R34,R35,R36,R38,R40),"") -> 349 | S10: =IF(OR(ISNUMBER(S12),ISNUMBER(S13),ISNUMBER(S15),ISNUMBER(S17),ISNUMBER(S18),ISNUMBER(S20),ISNUMBER(S21),ISNUMBER(S22),ISNUMBER(S24),ISNUMBER(S25),ISNUMBER(S26),ISNUMBER(S28),ISNUMBER(S30),ISNUMBER(S31),ISNUMBER(S32),ISNUMBER(S33),ISNUMBER(S34),ISNUMBER(S35),ISNUMBER(S36),ISNUMBER(S38),ISNUMBER(S40)),SUM(S12,S13,S15,S17,S18,S20,S21,S22,S24,S25,S26,S28,S30,S31,S32,S33,S34,S35,S36,S38,S40),"") -> 12 | T10: =IF(OR(ISNUMBER(T12),ISNUMBER(T13),ISNUMBER(T15),ISNUMBER(T17),ISNUMBER(T18),ISNUMBER(T20),ISNUMBER(T21),ISNUMBER(T22),ISNUMBER(T24),ISNUMBER(T25),ISNUMBER(T26),ISNUMBER(T28),ISNUMBER(T30),ISNUMBER(T31),ISNUMBER(T32),ISNUMBER(T33),ISNUMBER(T34),ISNUMBER(T35),ISNUMBER(T36),ISNUMBER(T38),ISNUMBER(T40)),SUM(T12,T13,T15,T17,T18,T20,T21,T22,T24,T25,T26,T28,T30,T31,T32,T33,T34,T35,T36,T38,T40),"") -> 442 | U10: =IF(OR(ISNUMBER(U12),ISNUMBER(U13),ISNUMBER(U15),ISNUMBER(U17),ISNUMBER(U18),ISNUMBER(U20),ISNUMBER(U21),ISNUMBER(U22),ISNUMBER(U24),ISNUMBER(U25),ISNUMBER(U26),ISNUMBER(U28),ISNUMBER(U30),ISNUMBER(U31),ISNUMBER(U32),ISNUMBER(U33),ISNUMBER(U34),ISNUMBER(U35),ISNUMBER(U36),ISNUMBER(U38),ISNUMBER(U40)),SUM(U12,U13,U15,U17,U18,U20,U21,U22,U24,U25,U26,U28,U30,U31,U32,U33,U34,U35,U36,U38,U40),"") -> 3 | V10: =IF(OR(ISNUMBER(V12),ISNUMBER(V13),ISNUMBER(V15),ISNUMBER(V17),ISNUMBER(V18),ISNUMBER(V20),ISNUMBER(V21),ISNUMBER(V22),ISNUMBER(V24),ISNUMBER(V25),ISNUMBER(V26),ISNUMBER(V28),ISNUMBER(V30),ISNUMBER(V31),ISNUMBER(V32),ISNUMBER(V33),ISNUMBER(V34),ISNUMBER(V35),ISNUMBER(V36),ISNUMBER(V38),ISNUMBER(V40)),SUM(V12,V13,V15,V17,V18,V20,V21,V22,V24,V25,V26,V28,V30,V31,V32,V33,V34,V35,V36,V38,V40),"") -> 26 | W10: =IF(((IF(S10="",0,S10))+(IF(T10="",0,T10)))<>0,SUM((IF(U10="",0,U10))+(IF(V10="",0,V10)))/SUM((IF(S10="",0,S10))+(IF(T10="",0,T10)))*100,0) -> 6.387665198 | X10: =IF(OR(ISNUMBER(X12),ISNUMBER(X13),ISNUMBER(X15),ISNUMBER(X17),ISNUMBER(X18),ISNUMBER(X20),ISNUMBER(X21),ISNUMBER(X22),ISNUMBER(X24),ISNUMBER(X25),ISNUMBER(X26),ISNUMBER(X28),ISNUMBER(X30),ISNUMBER(X31),ISNUMBER(X32),ISNUMBER(X33),ISNUMBER(X34),ISNUMBER(X35),ISNUMBER(X36),ISNUMBER(X38),ISNUMBER(X40)),SUM(X12,X13,X15,X17,X18,X20,X21,X22,X24,X25,X26,X28,X30,X31,X32,X33,X34,X35,X36,X38,X40),"") -> 3 | Y10: =IF(OR(ISNUMBER(Y12),ISNUMBER(Y13),ISNUMBER(Y15),ISNUMBER(Y17),ISNUMBER(Y18),ISNUMBER(Y20),ISNUMBER(Y21),ISNUMBER(Y22),ISNUMBER(Y24),ISNUMBER(Y25),ISNUMBER(Y26),ISNUMBER(Y28),ISNUMBER(Y30),ISNUMBER(Y31),ISNUMBER(Y32),ISNUMBER(Y33),ISNUMBER(Y34),ISNUMBER(Y35),ISNUMBER(Y36),ISNUMBER(Y38),ISNUMBER(Y40)),SUM(Y12,Y13,Y15,Y17,Y18,Y20,Y21,Y22,Y24,Y25,Y26,Y28,Y30,Y31,Y32,Y33,Y34,Y35,Y36,Y38,Y40),"") -> 47 | Z10: =IF(((IF(S10="",0,S10))+(IF(T10="",0,T10)))<>0,SUM((IF(X10="",0,X10))+(IF(Y10="",0,Y10)))/SUM((IF(S10="",0,S10))+(IF(T10="",0,T10)))*100,0) -> 11.01321586
B11: 市計 | E11: =IF(OR(ISNUMBER(E12),ISNUMBER(E13),ISNUMBER(E14),ISNUMBER(E15),ISNUMBER(E16),ISNUMBER(E17),ISNUMBER(E18),ISNUMBER(E19),ISNUMBER(E20),ISNUMBER(E21),ISNUMBER(E22),ISNUMBER(E23),ISNUMBER(E24),ISNUMBER(E25),ISNUMBER(E26),ISNUMBER(E27),ISNUMBER(E28),ISNUMBER(E29),ISNUMBER(E30),ISNUMBER(E31),ISNUMBER(E32)),SUM(E12:E32),"") -> 2527 | F11: =IF(OR(ISNUMBER(F12),ISNUMBER(F13),ISNUMBER(F14),ISNUMBER(F15),ISNUMBER(F16),ISNUMBER(F17),ISNUMBER(F18),ISNUMBER(F19),ISNUMBER(F20),ISNUMBER(F21),ISNUMBER(F22),ISNUMBER(F23),ISNUMBER(F24),ISNUMBER(F25),ISNUMBER(F26),ISNUMBER(F27),ISNUMBER(F28),ISNUMBER(F29),ISNUMBER(F30),ISNUMBER(F31),ISNUMBER(F32)),SUM(F12:F32),"") -> 43 | G11: =IF(OR(ISNUMBER(G12),ISNUMBER(G13),ISNUMBER(G14),ISNUMBER(G15),ISNUMBER(G16),ISNUMBER(G17),ISNUMBER(G18),ISNUMBER(G19),ISNUMBER(G20),ISNUMBER(G21),ISNUMBER(G22),ISNUMBER(G23),ISNUMBER(G24),ISNUMBER(G25),ISNUMBER(G26),ISNUMBER(G27),ISNUMBER(G28),ISNUMBER(G29),ISNUMBER(G30),ISNUMBER(G31),ISNUMBER(G32)),SUM(G12:G32),"") -> 3137 | H11: =IF(OR(ISNUMBER(H12),ISNUMBER(H13),ISNUMBER(H14),ISNUMBER(H15),ISNUMBER(H16),ISNUMBER(H17),ISNUMBER(H18),ISNUMBER(H19),ISNUMBER(H20),ISNUMBER(H21),ISNUMBER(H22),ISNUMBER(H23),ISNUMBER(H24),ISNUMBER(H25),ISNUMBER(H26),ISNUMBER(H27),ISNUMBER(H28),ISNUMBER(H29),ISNUMBER(H30),ISNUMBER(H31),ISNUMBER(H32)),SUM(H12:H32),"") -> 14 | I11: =IF(OR(ISNUMBER(I12),ISNUMBER(I13),ISNUMBER(I14),ISNUMBER(I15),ISNUMBER(I16),ISNUMBER(I17),ISNUMBER(I18),ISNUMBER(I19),ISNUMBER(I20),ISNUMBER(I21),ISNUMBER(I22),ISNUMBER(I23),ISNUMBER(I24),ISNUMBER(I25),ISNUMBER(I26),ISNUMBER(I27),ISNUMBER(I28),ISNUMBER(I29),ISNUMBER(I30),ISNUMBER(I31),ISNUMBER(I32)),SUM(I12:I32),"") -> 253 | J11: =IF(((IF(F11="",0,F11))+(IF(G11="",0,G11)))<>0,SUM((IF(H11="",0,H11))+(IF(I11="",0,I11)))/SUM((IF(F11="",0,F11))+(IF(G11="",0,G11)))*100,0) -> 8.396226415 | K11: =IF(OR(ISNUMBER(K12),ISNUMBER(K13),ISNUMBER(K14),ISNUMBER(K15),ISNUMBER(K16),ISNUMBER(K17),ISNUMBER(K18),ISNUMBER(K19),ISNUMBER(K20),ISNUMBER(K21),ISNUMBER(K22),ISNUMBER(K23),ISNUMBER(K24),ISNUMBER(K25),ISNUMBER(K26),ISNUMBER(K27),ISNUMBER(K28),ISNUMBER(K29),ISNUMBER(K30),ISNUMBER(K31),ISNUMBER(K32)),SUM(K12:K32),"") -> 6 | L11: =IF(OR(ISNUMBER(L12),ISNUMBER(L13),ISNUMBER(L14),ISNUMBER(L15),ISNUMBER(L16),ISNUMBER(L17),ISNUMBER(L18),ISNUMBER(L19),ISNUMBER(L20),ISNUMBER(L21),ISNUMBER(L22),ISNUMBER(L23),ISNUMBER(L24),ISNUMBER(L25),ISNUMBER(L26),ISNUMBER(L27),ISNUMBER(L28),ISNUMBER(L29),ISNUMBER(L30),ISNUMBER(L31),ISNUMBER(L32)),SUM(L12:L32),"") -> 417 | M11: =IF(((IF(F11="",0,F11))+(IF(G11="",0,G11)))<>0,SUM((IF(K11="",0,K11))+(IF(L11="",0,L11)))/SUM((IF(F11="",0,F11))+(IF(G11="",0,G11)))*100,0) -> 13.30188679 | O11: 羽島郡 | R11: =IF(OR(ISNUMBER(R12),ISNUMBER(R13)),SUM(R12:R13),"") -> 89 | S11: =IF(OR(ISNUMBER(S12),ISNUMBER(S13)),SUM(S12:S13),"") -> 1 | T11: =IF(OR(ISNUMBER(T12),ISNUMBER(T13)),SUM(T12:T13),"") -> 112 | U11: =IF(OR(ISNUMBER(U12),ISNUMBER(U13)),SUM(U12:U13),"") -> 0 | V11: =IF(OR(ISNUMBER(V12),ISNUMBER(V13)),SUM(V12:V13),"") -> 7 | W11: =IF(((IF(S11="",0,S11))+(IF(T11="",0,T11)))<>0,SUM((IF(U11="",0,U11))+(IF(V11="",0,V11)))/SUM((IF(S11="",0,S11))+(IF(T11="",0,T11)))*100,0) -> 6.194690265 | X11: =IF(OR(ISNUMBER(X12),ISNUMBER(X13)),SUM(X12:X13),"") -> 0 | Y11: =IF(OR(ISNUMBER(Y12),ISNUMBER(Y13)),SUM(Y12:Y13),"") -> 12 | Z11: =IF(((IF(S11="",0,S11))+(IF(T11="",0,T11)))<>0,SUM((IF(X11="",0,X11))+(IF(Y11="",0,Y11)))/SUM((IF(S11="",0,S11))+(IF(T11="",0,T11)))*100,0) -> 10.61946903
B12: 岐阜市 | E12: 782 | F12: 5 | G12: 957 | H12: 3 | I12: 74 | J12: =IF((F12+G12)<>0,(H12+I12)/(F12+G12)*100,0) -> 8.004158004 | K12: 2 | L12: 180 | M12: =IF((F12+G12)<>0,(K12+L12)/(F12+G12)*100,0) -> 18.91891892 | P12: 岐南町 | R12: 52 | S12: 0 | T12: 70 | U12: 0 | V12: 0 | W12: =IF((S12+T12)<>0,(U12+V12)/(S12+T12)*100,0) -> 0 | X12: 0 | Y12: 6 | Z12: =IF((S12+T12)<>0,(X12+Y12)/(S12+T12)*100,0) -> 8.571428571
B13: 大垣市 | E13: 179 | F13: 4 | G13: 228 | H13: 1 | I13: 15 | J13: 6.896551724 | K13: 1 | L13: 40 | M13: 17.67241379 | P13: 笠松町 | R13: 37 | S13: 1 | T13: 42 | U13: 0 | V13: 7 | W13: =IF((S13+T13)<>0,(U13+V13)/(S13+T13)*100,0) -> 16.27906977 | X13: 0 | Y13: 6 | Z13: =IF((S13+T13)<>0,(X13+Y13)/(S13+T13)*100,0) -> 13.95348837
B14: 高山市 | E14: 57 | F14: 5 | G14: 68 | H14: 1 | I14: 8 | J14: 12.32876712 | K14: 0 | L14: 5 | M14: 6.849315068 | O14: 養老郡 | R14: =IF(ISNUMBER(R15),SUM(R15),"") -> 24 | S14: =IF(ISNUMBER(S15),SUM(S15),"") -> 2 | T14: =IF(ISNUMBER(T15),SUM(T15),"") -> 36 | U14: =IF(ISNUMBER(U15),SUM(U15),"") -> 0 | V14: =IF(ISNUMBER(V15),SUM(V15),"") -> 3 | W14: =IF(((IF(S14="",0,S14))+(IF(T14="",0,T14)))<>0,SUM((IF(U14="",0,U14))+(IF(V14="",0,V14)))/SUM((IF(S14="",0,S14))+(IF(T14="",0,T14)))*100,0) -> 7.894736842 | X14: =IF(ISNUMBER(X15),SUM(X15),"") -> 0 | Y14: =IF(ISNUMBER(Y15),SUM(Y15),"") -> 2 | Z14: =IF(((IF(S14="",0,S14))+(IF(T14="",0,T14)))<>0,SUM((IF(X14="",0,X14))+(IF(Y14="",0,Y14)))/SUM((IF(S14="",0,S14))+(IF(T14="",0,T14)))*100,0) -> 5.263157895
B15: 多治見市 | E15: 188 | F15: 2 | G15: 245 | H15: 0 | I15: 30 | J15: 12.14574899 | K15: 0 | L15: 20 | M15: 8.097165992 | P15: 養老町 | R15: 24 | S15: 2 | T15: 36 | U15: 0 | V15: 3 | W15: =IF((S15+T15)<>0,(U15+V15)/(S15+T15)*100,0) -> 7.894736842 | X15: 0 | Y15: 2 | Z15: =IF((S15+T15)<>0,(X15+Y15)/(S15+T15)*100,0) -> 5.263157895
B16: 関市 | E16: 150 | F16: 6 | G16: 182 | H16: 2 | I16: 15 | J16: 9.042553191 | K16: 0 | L16: 26 | M16: 13.82978723 | O16: 不破郡 | R16: =IF(OR(ISNUMBER(R17),ISNUMBER(R18)),SUM(R17:R18),"") -> 39 | S16: =IF(OR(ISNUMBER(S17),ISNUMBER(S18)),SUM(S17:S18),"") -> 0 | T16: =IF(OR(ISNUMBER(T17),ISNUMBER(T18)),SUM(T17:T18),"") -> 46 | U16: =IF(OR(ISNUMBER(U17),ISNUMBER(U18)),SUM(U17:U18),"") -> 0 | V16: =IF(OR(ISNUMBER(V17),ISNUMBER(V18)),SUM(V17:V18),"") -> 5 | W16: =IF(((IF(S16="",0,S16))+(IF(T16="",0,T16)))<>0,SUM((IF(U16="",0,U16))+(IF(V16="",0,V16)))/SUM((IF(S16="",0,S16))+(IF(T16="",0,T16)))*100,0) -> 10.86956522 | X16: =IF(OR(ISNUMBER(X17),ISNUMBER(X18)),SUM(X17:X18),"") -> 0 | Y16: =IF(OR(ISNUMBER(Y17),ISNUMBER(Y18)),SUM(Y17:Y18),"") -> 10 | Z16: =IF(((IF(S16="",0,S16))+(IF(T16="",0,T16)))<>0,SUM((IF(X16="",0,X16))+(IF(Y16="",0,Y16)))/SUM((IF(S16="",0,S16))+(IF(T16="",0,T16)))*100,0) -> 21.73913043
B17: 中津川市 | E17: 42 | F17: 1 | G17: 58 | H17: 1 | I17: 4 | J17: 8.474576271 | K17: 0 | L17: 1 | M17: 1.694915254 | P17: 垂井町 | R17: 29 | S17: 0 | T17: 32 | U17: 0 | V17: 4 | W17: =IF((S17+T17)<>0,(U17+V17)/(S17+T17)*100,0) -> 12.5 | X17: 0 | Y17: 10 | Z17: =IF((S17+T17)<>0,(X17+Y17)/(S17+T17)*100,0) -> 31.25
B18: 美濃市 | E18: 25 | F18: 2 | G18: 33 | H18: 0 | I18: 2 | J18: =IF((F18+G18)<>0,(H18+I18)/(F18+G18)*100,0) -> 5.714285714 | K18: 1 | L18: 1 | M18: 5.714285714 | P18: 関ヶ原町 | R18: 10 | S18: 0 | T18: 14 | U18: 0 | V18: 1 | W18: =IF((S18+T18)<>0,(U18+V18)/(S18+T18)*100,0) -> 7.142857143 | X18: 0 | Y18: 0 | Z18: =IF((S18+T18)<>0,(X18+Y18)/(S18+T18)*100,0) -> 0
B19: 瑞浪市 | E19: 51 | F19: 0 | G19: 64 | H19: 0 | I19: 7 | J19: 10.9375 | K19: 0 | L19: 1 | M19: 1.5625 | O19: 安八郡 | R19: =IF(OR(ISNUMBER(R20),ISNUMBER(R21),ISNUMBER(R22)),SUM(R20:R22),"") -> 44 | S19: =IF(OR(ISNUMBER(S20),ISNUMBER(S21),ISNUMBER(S22)),SUM(S20:S22),"") -> 3 | T19: =IF(OR(ISNUMBER(T20),ISNUMBER(T21),ISNUMBER(T22)),SUM(T20:T22),"") -> 54 | U19: =IF(OR(ISNUMBER(U20),ISNUMBER(U21),ISNUMBER(U22)),SUM(U20:U22),"") -> 0 | V19: =IF(OR(ISNUMBER(V20),ISNUMBER(V21),ISNUMBER(V22)),SUM(V20:V22),"") -> 4 | W19: =IF(((IF(S19="",0,S19))+(IF(T19="",0,T19)))<>0,SUM((IF(U19="",0,U19))+(IF(V19="",0,V19)))/SUM((IF(S19="",0,S19))+(IF(T19="",0,T19)))*100,0) -> 7.01754386 | X19: =IF(OR(ISNUMBER(X20),ISNUMBER(X21),ISNUMBER(X22)),SUM(X20:X22),"") -> 1 | Y19: =IF(OR(ISNUMBER(Y20),ISNUMBER(Y21),ISNUMBER(Y22)),SUM(Y20:Y22),"") -> 6 | Z19: =IF(((IF(S19="",0,S19))+(IF(T19="",0,T19)))<>0,SUM((IF(X19="",0,X19))+(IF(Y19="",0,Y19)))/SUM((IF(S19="",0,S19))+(IF(T19="",0,T19)))*100,0) -> 12.28070175
B20: 羽島市 | E20: 87 | F20: 4 | G20: 97 | H20: 2 | I20: 3 | J20: 4.95049505 | K20: 1 | L20: 14 | M20: 14.85148515 | P20: 神戸町 | R20: 15 | S20: 1 | T20: 18 | U20: 0 | V20: 0 | W20: =IF((S20+T20)<>0,(U20+V20)/(S20+T20)*100,0) -> 0 | X20: 0 | Y20: 3 | Z20: =IF((S20+T20)<>0,(X20+Y20)/(S20+T20)*100,0) -> 15.78947368
B21: 恵那市 | E21: 58 | F21: 0 | G21: 65 | H21: 0 | I21: 8 | J21: 12.30769231 | K21: 0 | L21: 3 | M21: 4.615384615 | P21: 輪之内町 | R21: 7 | S21: 0 | T21: 9 | U21: 0 | V21: 1 | W21: =IF((S21+T21)<>0,(U21+V21)/(S21+T21)*100,0) -> 11.11111111 | X21: 0 | Y21: 0 | Z21: =IF((S21+T21)<>0,(X21+Y21)/(S21+T21)*100,0) -> 0
B22: 美濃加茂市 | E22: 79 | F22: 0 | G22: 98 | H22: 0 | I22: 10 | J22: 10.20408163 | K22: 0 | L22: 19 | M22: 19.3877551 | P22: 安八町 | R22: 22 | S22: 2 | T22: 27 | U22: 0 | V22: 3 | W22: =IF((S22+T22)<>0,(U22+V22)/(S22+T22)*100,0) -> 10.34482759 | X22: 1 | Y22: 3 | Z22: =IF((S22+T22)<>0,(X22+Y22)/(S22+T22)*100,0) -> 13.79310345
B23: 土岐市 | E23: 81 | F23: 2 | G23: 101 | H23: 2 | I23: 7 | J23: 8.737864078 | K23: 0 | L23: 8 | M23: 7.766990291 | O23: 揖斐郡 | R23: =IF(OR(ISNUMBER(R24),ISNUMBER(R25),ISNUMBER(R26)),SUM(R24:R26),"") -> 76 | S23: =IF(OR(ISNUMBER(S24),ISNUMBER(S25),ISNUMBER(S26)),SUM(S24:S26),"") -> 3 | T23: =IF(OR(ISNUMBER(T24),ISNUMBER(T25),ISNUMBER(T26)),SUM(T24:T26),"") -> 98 | U23: =IF(OR(ISNUMBER(U24),ISNUMBER(U25),ISNUMBER(U26)),SUM(U24:U26),"") -> 0 | V23: =IF(OR(ISNUMBER(V24),ISNUMBER(V25),ISNUMBER(V26)),SUM(V24:V26),"") -> 4 | W23: =IF(((IF(S23="",0,S23))+(IF(T23="",0,T23)))<>0,SUM((IF(U23="",0,U23))+(IF(V23="",0,V23)))/SUM((IF(S23="",0,S23))+(IF(T23="",0,T23)))*100,0) -> 3.96039604 | X23: =IF(OR(ISNUMBER(X24),ISNUMBER(X25),ISNUMBER(X26)),SUM(X24:X26),"") -> 2 | Y23: =IF(OR(ISNUMBER(Y24),ISNUMBER(Y25),ISNUMBER(Y26)),SUM(Y24:Y26),"") -> 8 | Z23: =IF(((IF(S23="",0,S23))+(IF(T23="",0,T23)))<>0,SUM((IF(X23="",0,X23))+(IF(Y23="",0,Y23)))/SUM((IF(S23="",0,S23))+(IF(T23="",0,T23)))*100,0) -> 9.900990099
B24: 各務原市 | E24: 290 | F24: 0 | G24: 364 | H24: 0 | I24: 31 | J24: 8.516483516 | K24: 0 | L24: 46 | M24: 12.63736264 | P24: 揖斐川町 | R24: 18 | S24: 1 | T24: 22 | U24: 0 | V24: 1 | W24: =IF((S24+T24)<>0,(U24+V24)/(S24+T24)*100,0) -> 4.347826087 | X24: 1 | Y24: 2 | Z24: =IF((S24+T24)<>0,(X24+Y24)/(S24+T24)*100,0) -> 13.04347826
B25: 可児市 | E25: 119 | F25: 3 | G25: 137 | H25: 1 | I25: 15 | J25: 11.42857143 | K25: 0 | L25: 15 | M25: 10.71428571 | P25: 大野町 | R25: 24 | S25: 1 | T25: 27 | U25: 0 | V25: 0 | W25: =IF((S25+T25)<>0,(U25+V25)/(S25+T25)*100,0) -> 0 | X25: 1 | Y25: 4 | Z25: =IF((S25+T25)<>0,(X25+Y25)/(S25+T25)*100,0) -> 17.85714286
B26: 山県市 | E26: 31 | F26: 0 | G26: 33 | H26: 0 | I26: 2 | J26: 6.060606061 | K26: 0 | L26: 7 | M26: 21.21212121 | P26: 池田町 | R26: 34 | S26: 1 | T26: 49 | U26: 0 | V26: 3 | W26: =IF((S26+T26)<>0,(U26+V26)/(S26+T26)*100,0) -> 6 | X26: 0 | Y26: 2 | Z26: =IF((S26+T26)<>0,(X26+Y26)/(S26+T26)*100,0) -> 4
B27: 瑞穂市 | E27: 89 | F27: 2 | G27: 110 | H27: 1 | I27: 8 | J27: 8.035714286 | K27: 1 | L27: 14 | M27: 13.39285714 | O27: 本巣郡 | R27: =IF(ISNUMBER(R28),SUM(R28),"") -> 32 | S27: =IF(ISNUMBER(S28),SUM(S28),"") -> 1 | T27: =IF(ISNUMBER(T28),SUM(T28),"") -> 39 | U27: =IF(ISNUMBER(U28),SUM(U28),"") -> 1 | V27: =IF(ISNUMBER(V28),SUM(V28),"") -> 2 | W27: =IF(((IF(S27="",0,S27))+(IF(T27="",0,T27)))<>0,SUM((IF(U27="",0,U27))+(IF(V27="",0,V27)))/SUM((IF(S27="",0,S27))+(IF(T27="",0,T27)))*100,0) -> 7.5 | X27: =IF(ISNUMBER(X28),SUM(X28),"") -> 0 | Y27: =IF(ISNUMBER(Y28),SUM(Y28),"") -> 4 | Z27: =IF(((IF(S27="",0,S27))+(IF(T27="",0,T27)))<>0,SUM((IF(X27="",0,X27))+(IF(Y27="",0,Y27)))/SUM((IF(S27="",0,S27))+(IF(T27="",0,T27)))*100,0) -> 10
B28: 飛驒市 | E28: 22 | F28: 1 | G28: 28 | H28: 0 | I28: 1 | J28: 3.448275862 | K28: 0 | L28: 2 | M28: 6.896551724 | P28: 北方町 | R28: 32 | S28: 1 | T28: 39 | U28: 1 | V28: 2 | W28: =IF((S28+T28)<>0,(U28+V28)/(S28+T28)*100,0) -> 7.5 | X28: 0 | Y28: 4 | Z28: =IF((S28+T28)<>0,(X28+Y28)/(S28+T28)*100,0) -> 10
B29: 本巣市 | E29: 70 | F29: 2 | G29: 91 | H29: 0 | I29: 1 | J29: 1.075268817 | K29: 0 | L29: 7 | M29: 7.52688172 | O29: 加茂郡 | R29: =IF(OR(ISNUMBER(R30),ISNUMBER(R31),ISNUMBER(R32),ISNUMBER(R33),ISNUMBER(R34),ISNUMBER(R35),ISNUMBER(R36)),SUM(R30:R36),"") -> 29 | S29: =IF(OR(ISNUMBER(S30),ISNUMBER(S31),ISNUMBER(S32),ISNUMBER(S33),ISNUMBER(S34),ISNUMBER(S35),ISNUMBER(S36)),SUM(S30:S36),"") -> 1 | T29: =IF(OR(ISNUMBER(T30),ISNUMBER(T31),ISNUMBER(T32),ISNUMBER(T33),ISNUMBER(T34),ISNUMBER(T35),ISNUMBER(T36)),SUM(T30:T36),"") -> 35 | U29: =IF(OR(ISNUMBER(U30),ISNUMBER(U31),ISNUMBER(U32),ISNUMBER(U33),ISNUMBER(U34),ISNUMBER(U35),ISNUMBER(U36)),SUM(U30:U36),"") -> 1 | V29: =IF(OR(ISNUMBER(V30),ISNUMBER(V31),ISNUMBER(V32),ISNUMBER(V33),ISNUMBER(V34),ISNUMBER(V35),ISNUMBER(V36)),SUM(V30:V36),"") -> 0 | W29: =IF(((IF(S29="",0,S29))+(IF(T29="",0,T29)))<>0,SUM((IF(U29="",0,U29))+(IF(V29="",0,V29)))/SUM((IF(S29="",0,S29))+(IF(T29="",0,T29)))*100,0) -> 2.777777778 | X29: =IF(OR(ISNUMBER(X30),ISNUMBER(X31),ISNUMBER(X32),ISNUMBER(X33),ISNUMBER(X34),ISNUMBER(X35),ISNUMBER(X36)),SUM(X30:X36),"") -> 0 | Y29: =IF(OR(ISNUMBER(Y30),ISNUMBER(Y31),ISNUMBER(Y32),ISNUMBER(Y33),ISNUMBER(Y34),ISNUMBER(Y35),ISNUMBER(Y36)),SUM(Y30:Y36),"") -> 2 | Z29: =IF(((IF(S29="",0,S29))+(IF(T29="",0,T29)))<>0,SUM((IF(X29="",0,X29))+(IF(Y29="",0,Y29)))/SUM((IF(S29="",0,S29))+(IF(T29="",0,T29)))*100,0) -> 5.555555556
B30: 郡上市 | E30: 48 | F30: 2 | G30: 70 | H30: 0 | I30: 7 | J30: 9.722222222 | K30: 0 | L30: 5 | M30: 6.944444444 | P30: 坂祝町 | R30: 9 | S30: 0 | T30: 12 | U30: 0 | V30: 0 | W30: =IF((S30+T30)<>0,(U30+V30)/(S30+T30)*100,0) -> 0 | X30: 0 | Y30: 0 | Z30: =IF((S30+T30)<>0,(X30+Y30)/(S30+T30)*100,0) -> 0
B31: 下呂市 | E31: 21 | F31: 0 | G31: 30 | H31: 0 | I31: 1 | J31: 3.333333333 | K31: 0 | L31: 0 | M31: 0 | P31: 富加町 | R31: 7 | S31: 1 | T31: 10 | U31: 1 | V31: 0 | W31: 9.090909091 | X31: 0 | Y31: 0 | Z31: 0
B32: 海津市 | E32: 58 | F32: 2 | G32: 78 | H32: 0 | I32: 4 | J32: 5 | K32: 0 | L32: 3 | M32: 3.75 | P32: 川辺町 | R32: 7 | S32: 0 | T32: 7 | U32: 0 | V32: 0 | W32: 0 | X32: 0 | Y32: 2 | Z32: 28.57142857
P33: 七宗町 | R33: 1 | S33: 0 | T33: 1 | U33: 0 | V33: 0 | W33: 0 | X33: 0 | Y33: 0 | Z33: 0
B34: 高速道路 | E34: =IF(OR(ISNUMBER(E35),ISNUMBER(E36),ISNUMBER(E37),ISNUMBER(E38),ISNUMBER(E39),ISNUMBER(E40)),SUM(E35:E40),"") -> 35 | F34: =IF(OR(ISNUMBER(F35),ISNUMBER(F36),ISNUMBER(F37),ISNUMBER(F38),ISNUMBER(F39),ISNUMBER(F40)),SUM(F35:F40),"") -> 6 | G34: =IF(OR(ISNUMBER(G35),ISNUMBER(G36),ISNUMBER(G37),ISNUMBER(G38),ISNUMBER(G39),ISNUMBER(G40)),SUM(G35:G40),"") -> 69 | H34: =IF(OR(ISNUMBER(H35),ISNUMBER(H36),ISNUMBER(H37),ISNUMBER(H38),ISNUMBER(H39),ISNUMBER(H40)),SUM(H35:H40),"") -> 0 | I34: =IF(OR(ISNUMBER(I35),ISNUMBER(I36),ISNUMBER(I37),ISNUMBER(I38),ISNUMBER(I39),ISNUMBER(I40)),SUM(I35:I40),"") -> 0 | J34: =IF(((IF(F34="",0,F34))+(IF(G34="",0,G34)))<>0,SUM((IF(H34="",0,H34))+(IF(I34="",0,I34)))/SUM((IF(F34="",0,F34))+(IF(G34="",0,G34)))*100,0) -> 0 | K34: =IF(OR(ISNUMBER(K35),ISNUMBER(K36),ISNUMBER(K37),ISNUMBER(K38),ISNUMBER(K39),ISNUMBER(K40)),SUM(K35:K40),"") -> 0 | L34: =IF(OR(ISNUMBER(L35),ISNUMBER(L36),ISNUMBER(L37),ISNUMBER(L38),ISNUMBER(L39),ISNUMBER(L40)),SUM(L35:L40),"") -> 0 | M34: =IF(((IF(F34="",0,F34))+(IF(G34="",0,G34)))<>0,SUM((IF(K34="",0,K34))+(IF(L34="",0,L34)))/SUM((IF(F34="",0,F34))+(IF(G34="",0,G34)))*100,0) -> 0 | P34: 八百津町 | R34: 4 | S34: 0 | T34: 4 | U34: 0 | V34: 0 | W34: 0 | X34: 0 | Y34: 0 | Z34: 0
C35: 中央 | E35: 14 | F35: 3 | G35: 24 | H35: 0 | I35: 0 | J35: =IF((F35+G35)<>0,(H35+I35)/(F35+G35)*100,0) -> 0 | K35: 0 | L35: 0 | M35: =IF((F35+G35)<>0,(K35+L35)/(F35+G35)*100,0) -> 0 | P35: 白川町 | R35: 1 | S35: 0 | T35: 1 | U35: 0 | V35: 0 | W35: 0 | X35: 0 | Y35: 0 | Z35: 0
C36: 名神 | E36: 9 | F36: 1 | G36: 12 | H36: 0 | I36: 0 | J36: =IF((F36+G36)<>0,(H36+I36)/(F36+G36)*100,0) -> 0 | K36: 0 | L36: 0 | M36: 0 | P36: 東白川村 | R36: 0 | S36: 0 | T36: 0 | U36: 0 | V36: 0 | W36: 0 | X36: 0 | Y36: 0 | Z36: 0
C37: 東海北陸 | E37: 9 | F37: 0 | G37: 31 | H37: 0 | I37: 0 | J37: =IF((F37+G37)<>0,(H37+I37)/(F37+G37)*100,0) -> 0 | K37: 0 | L37: 0 | M37: 0 | O37: 可児郡 | R37: =IF(ISNUMBER(R38),SUM(R38),"") -> 13 | S37: =IF(ISNUMBER(S38),SUM(S38),"") -> 1 | T37: =IF(ISNUMBER(T38),SUM(T38),"") -> 17 | U37: =IF(ISNUMBER(U38),SUM(U38),"") -> 1 | V37: =IF(ISNUMBER(V38),SUM(V38),"") -> 0 | W37: =IF(((IF(S37="",0,S37))+(IF(T37="",0,T37)))<>0,SUM((IF(U37="",0,U37))+(IF(V37="",0,V37)))/SUM((IF(S37="",0,S37))+(IF(T37="",0,T37)))*100,0) -> 5.555555556 | X37: =IF(ISNUMBER(X38),SUM(X38),"") -> 0 | Y37: =IF(ISNUMBER(Y38),SUM(Y38),"") -> 3 | Z37: =IF(((IF(S37="",0,S37))+(IF(T37="",0,T37)))<>0,SUM((IF(X37="",0,X37))+(IF(Y37="",0,Y37)))/SUM((IF(S37="",0,S37))+(IF(T37="",0,T37)))*100,0) -> 16.66666667
C38: 中部縦貫 | E38: 1 | F38: 1 | G38: 1 | H38: 0 | I38: 0 | J38: 0 | K38: 0 | L38: 0 | M38: 0 | P38: 御嵩町 | R38: 13 | S38: 1 | T38: 17 | U38: 1 | V38: 0 | W38: =IF((S38+T38)<>0,(U38+V38)/(S38+T38)*100,0) -> 5.555555556 | X38: 0 | Y38: 3 | Z38: =IF((S38+T38)<>0,(X38+Y38)/(S38+T38)*100,0) -> 16.66666667
C39: 高山国府BP | E39: 0 | F39: 0 | G39: 0 | H39: 0 | I39: 0 | J39: 0 | K39: 0 | L39: 0 | M39: 0 | O39: 大野郡 | R39: =IF(ISNUMBER(R40),SUM(R40),"") -> 3 | S39: =IF(ISNUMBER(S40),SUM(S40),"") -> 0 | T39: =IF(ISNUMBER(T40),SUM(T40),"") -> 5 | U39: =IF(ISNUMBER(U40),SUM(U40),"") -> 0 | V39: =IF(ISNUMBER(V40),SUM(V40),"") -> 1 | W39: =IF(((IF(S39="",0,S39))+(IF(T39="",0,T39)))<>0,SUM((IF(U39="",0,U39))+(IF(V39="",0,V39)))/SUM((IF(S39="",0,S39))+(IF(T39="",0,T39)))*100,0) -> 20 | X39: =IF(ISNUMBER(X40),SUM(X40),"") -> 0 | Y39: =IF(ISNUMBER(Y40),SUM(Y40),"") -> 0 | Z39: =IF(((IF(S39="",0,S39))+(IF(T39="",0,T39)))<>0,SUM((IF(X39="",0,X39))+(IF(Y39="",0,Y39)))/SUM((IF(S39="",0,S39))+(IF(T39="",0,T39)))*100,0) -> 0
C40: 東海環状 | E40: 2 | F40: 1 | G40: 1 | H40: 0 | I40: 0 | J40: =IF((F40+G40)<>0,(H40+I40)/(F40+G40)*100,0) -> 0 | K40: 0 | L40: 0 | M40: 0 | P40: 白川村 | R40: 3 | S40: 0 | T40: 5 | U40: 0 | V40: 1 | W40: =IF((S40+T40)<>0,(U40+V40)/(S40+T40)*100,0) -> 20 | X40: 0 | Y40: 0 | Z40: =IF((S40+T40)<>0,(X40+Y40)/(S40+T40)*100,0) -> 0
B41: 注：高速道路の事故は合計に含まない
